[Event "Late-Titled-Tuesday-Blitz-September-05-2023"]
[Site "Chess.com"]
[Date "2023.09.05"]
[Round "4"]
[White "YEIKO2017"]
[Black "tteshan"]
[Result "0-1"]
[WhiteElo "2425"]
[BlackElo "2572"]
[TimeControl "180+1"]
[EndTime "14:39:57 PDT"]
[Termination "tteshan won by resignation"]

1. e4 {[%clk 0:03:00.9]} 1... c5 {[%clk 0:02:59.9]} 2. Nf3 {[%clk 0:02:59.5]}
2... Nc6 {[%clk 0:03:00.6]} 3. Bb5 {[%clk 0:02:58.4]} 3... e6 {[%clk 0:03:00.5]}
4. O-O {[%clk 0:02:54]} 4... Nge7 {[%clk 0:03:00.3]} 5. Nc3 {[%clk 0:02:54.1]}
5... a6 {[%clk 0:02:59.7]} 6. Bxc6 {[%clk 0:02:52.4]} 6... Nxc6 {[%clk
0:03:00.6]} 7. d4 {[%clk 0:02:52]} 7... cxd4 {[%clk 0:03:01.3]} 8. Nxd4 {[%clk
0:02:52.2]} 8... Be7 {[%clk 0:03:00.1]} 9. Nxc6 {[%clk 0:02:51]} 9... bxc6
{[%clk 0:03:00]} 10. e5 {[%clk 0:02:50.8]} 10... d5 {[%clk 0:02:55.9]} 11. exd6
{[%clk 0:02:49.9]} 11... Qxd6 {[%clk 0:02:55.9]} 12. Qxd6 {[%clk 0:02:47.3]}
12... Bxd6 {[%clk 0:02:56.8]} 13. Ne4 {[%clk 0:02:47.3]} 13... Be5 {[%clk
0:02:49.6]} 14. f4 {[%clk 0:02:29.8]} 14... Bd4+ {[%clk 0:02:48.5]} 15. Kh1
{[%clk 0:02:30.1]} 15... f5 {[%clk 0:02:35.8]} 16. c3 {[%clk 0:02:20.5]} 16...
Bb6 {[%clk 0:02:24.7]} 17. Nd6+ {[%clk 0:02:15]} 17... Ke7 {[%clk 0:02:24.6]}
18. Nc4 {[%clk 0:02:14.7]} 18... Ba7 {[%clk 0:02:15.2]} 19. b3 {[%clk 0:02:09]}
19... Rd8 {[%clk 0:02:03.5]} 20. Ba3+ {[%clk 0:02:06.2]} 20... Kf6 {[%clk
0:01:54.1]} 21. Bd6 {[%clk 0:01:48.8]} 21... Bd7 {[%clk 0:01:20.5]} 22. Rad1
{[%clk 0:01:39.8]} 22... Be8 {[%clk 0:01:16.6]} 23. Be5+ {[%clk 0:01:35]} 23...
Kg6 {[%clk 0:01:15.1]} 24. Bd6 {[%clk 0:01:09.7]} 24... Kh6 {[%clk 0:01:04.5]}
25. Rf3 {[%clk 0:01:06.4]} 25... Bh5 {[%clk 0:00:58]} 26. Rh3 {[%clk 0:01:03.5]}
26... g6 {[%clk 0:00:35.5]} 27. Rdd3 {[%clk 0:00:53.5]} 27... Kg7 {[%clk
0:00:32.9]} 28. Be5+ {[%clk 0:00:42]} 28... Kg8 {[%clk 0:00:26.6]} 29. Nd6
{[%clk 0:00:38.6]} 29... Rd7 {[%clk 0:00:19.7]} 30. c4 {[%clk 0:00:32.1]} 30...
Rad8 {[%clk 0:00:19]} 31. b4 {[%clk 0:00:27.8]} 31... Be2 {[%clk 0:00:16]} 32.
Rd2 {[%clk 0:00:21.2]} 32... Bxc4 {[%clk 0:00:15.3]} 33. Rc3 {[%clk 0:00:17.4]}
33... Bd5 {[%clk 0:00:15.2]} 34. a4 {[%clk 0:00:12.2]} 34... Rxd6 {[%clk
0:00:14.1]} 35. Bxd6 {[%clk 0:00:13.1]} 35... Rxd6 {[%clk 0:00:14.7]} 36. b5
{[%clk 0:00:13.8]} 36... axb5 {[%clk 0:00:14.6]} 37. axb5 {[%clk 0:00:13.9]}
37... Kf7 {[%clk 0:00:09.4]} 38. Ra3 {[%clk 0:00:09.7]} 38... Bc5 {[%clk
0:00:08.1]} 39. Rc2 {[%clk 0:00:06.4]} 39... Bxa3 {[%clk 0:00:07.9]} 0-1

[Event "Late-Titled-Tuesday-Blitz-September-05-2023"]
[Site "Chess.com"]
[Date "2023.09.05"]
[Round "4"]
[White "RebecaJimnz"]
[Black "willyam13"]
[Result "0-1"]
[WhiteElo "2262"]
[BlackElo "2482"]
[TimeControl "180+1"]
[EndTime "14:39:58 PDT"]
[Termination "willyam13 won on time"]

1. e4 {[%clk 0:03:00.9]} 1... e5 {[%clk 0:03:00]} 2. d4 {[%clk 0:02:58.6]} 2...
exd4 {[%clk 0:02:59.4]} 3. Qxd4 {[%clk 0:02:59.5]} 3... Nc6 {[%clk 0:02:58.9]}
4. Qe3 {[%clk 0:02:59.8]} 4... Nf6 {[%clk 0:02:59.2]} 5. Nc3 {[%clk 0:02:59.5]}
5... Bb4 {[%clk 0:02:58.4]} 6. Bd2 {[%clk 0:03:00]} 6... O-O {[%clk 0:02:57.5]}
7. O-O-O {[%clk 0:03:00.2]} 7... Re8 {[%clk 0:02:54.5]} 8. Bc4 {[%clk
0:03:00.9]} 8... d6 {[%clk 0:02:31.2]} 9. f3 {[%clk 0:03:00.9]} 9... Be6 {[%clk
0:02:25.8]} 10. Bxe6 {[%clk 0:02:59.1]} 10... Rxe6 {[%clk 0:02:18.1]} 11. g4
{[%clk 0:02:59.3]} 11... Ne5 {[%clk 0:02:13.8]} 12. g5 {[%clk 0:02:52.8]} 12...
Nh5 {[%clk 0:02:08.9]} 13. Nge2 {[%clk 0:02:35.3]} 13... Nc4 {[%clk 0:02:03.5]}
14. Qd3 {[%clk 0:02:34.7]} 14... Nxd2 {[%clk 0:02:01.4]} 15. Qxd2 {[%clk
0:02:30.2]} 15... g6 {[%clk 0:01:45.5]} 16. h4 {[%clk 0:02:23.5]} 16... c6
{[%clk 0:01:42.2]} 17. a3 {[%clk 0:01:31.7]} 17... Ba5 {[%clk 0:01:40.3]} 18.
Rdg1 {[%clk 0:01:17.4]} 18... b5 {[%clk 0:01:38.2]} 19. Nd4 {[%clk 0:01:16.4]}
19... b4 {[%clk 0:01:20.2]} 20. axb4 {[%clk 0:01:14.2]} 20... Bxb4 {[%clk
0:01:21.1]} 21. Nxe6 {[%clk 0:01:14.1]} 21... fxe6 {[%clk 0:01:21.2]} 22. Qd3
{[%clk 0:01:00.7]} 22... d5 {[%clk 0:01:11.3]} 23. exd5 {[%clk 0:00:57]} 23...
cxd5 {[%clk 0:01:07.9]} 24. Qd4 {[%clk 0:00:51]} 24... Qd6 {[%clk 0:01:00.8]}
25. Re1 {[%clk 0:00:47.9]} 25... Ng3 {[%clk 0:00:47.1]} 26. Rhg1 {[%clk
0:00:26.9]} 26... Nf5 {[%clk 0:00:47.3]} 27. Qe5 {[%clk 0:00:27.1]} 27... Qxe5
{[%clk 0:00:46.1]} 28. Rxe5 {[%clk 0:00:28]} 28... Kf7 {[%clk 0:00:40.7]} 29.
Na2 {[%clk 0:00:14.3]} 29... Bd6 {[%clk 0:00:36]} 30. Re2 {[%clk 0:00:14.4]}
30... a5 {[%clk 0:00:29]} 31. Rge1 {[%clk 0:00:13.9]} 31... Re8 {[%clk
0:00:24.8]} 32. Nc3 {[%clk 0:00:13.3]} 32... Re7 {[%clk 0:00:19.3]} 33. Nb5
{[%clk 0:00:11.3]} 33... Bf4+ {[%clk 0:00:18.4]} 34. Kb1 {[%clk 0:00:11.2]}
34... Bg3 {[%clk 0:00:15]} 35. Rg1 {[%clk 0:00:07.9]} 35... Bxh4 {[%clk
0:00:14.9]} 36. Nc3 {[%clk 0:00:05.4]} 36... Bg3 {[%clk 0:00:13.9]} 37. Rh1
{[%clk 0:00:05.5]} 37... Kg7 {[%clk 0:00:13]} 38. Rh3 {[%clk 0:00:03.9]} 38...
Bf4 {[%clk 0:00:12.6]} 39. Rh1 {[%clk 0:00:03]} 39... Bxg5 {[%clk 0:00:12.5]}
40. Rhe1 {[%clk 0:00:02.3]} 40... Kf7 {[%clk 0:00:12.4]} 0-1

[Event "Late-Titled-Tuesday-Blitz-September-05-2023"]
[Site "Chess.com"]
[Date "2023.09.05"]
[Round "4"]
[White "Andreikka"]
[Black "ckgchess"]
[Result "1-0"]
[WhiteElo "3019"]
[BlackElo "2842"]
[TimeControl "180+1"]
[EndTime "14:40:00 PDT"]
[Termination "Andreikka won on time"]

1. d4 {[%clk 0:03:00.9]} 1... Nf6 {[%clk 0:03:00]} 2. c4 {[%clk 0:03:01.1]} 2...
e6 {[%clk 0:03:00.5]} 3. g3 {[%clk 0:03:01.6]} 3... d5 {[%clk 0:03:00.5]} 4. Bg2
{[%clk 0:03:02]} 4... dxc4 {[%clk 0:02:58.7]} 5. Nf3 {[%clk 0:03:01.1]} 5... Nc6
{[%clk 0:02:58.7]} 6. O-O {[%clk 0:02:59]} 6... Rb8 {[%clk 0:02:58.8]} 7. a4
{[%clk 0:02:50]} 7... b6 {[%clk 0:02:55.3]} 8. Bg5 {[%clk 0:02:23.8]} 8... Be7
{[%clk 0:02:52.4]} 9. e3 {[%clk 0:02:20.5]} 9... O-O {[%clk 0:02:50.1]} 10. Qe2
{[%clk 0:02:19.4]} 10... Ba6 {[%clk 0:02:43]} 11. Na3 {[%clk 0:02:17.7]} 11...
Na5 {[%clk 0:02:36.5]} 12. Ne5 {[%clk 0:02:12.7]} 12... Nd7 {[%clk 0:02:28.9]}
13. Bxe7 {[%clk 0:02:08.1]} 13... Qxe7 {[%clk 0:02:29.8]} 14. Nc6 {[%clk
0:02:07]} 14... Nxc6 {[%clk 0:02:29.7]} 15. Bxc6 {[%clk 0:02:07.9]} 15... e5
{[%clk 0:02:12.6]} 16. Nb5 {[%clk 0:01:19.7]} 16... exd4 {[%clk 0:02:02.5]} 17.
Nxd4 {[%clk 0:01:10.8]} 17... Ne5 {[%clk 0:01:53.2]} 18. Bb5 {[%clk 0:01:10.2]}
18... Bb7 {[%clk 0:01:47.6]} 19. f4 {[%clk 0:01:10.6]} 19... a6 {[%clk
0:00:55.8]} 20. Bxa6 {[%clk 0:00:57.7]} 20... Bxa6 {[%clk 0:00:50.6]} 21. fxe5
{[%clk 0:00:58.4]} 21... Qxe5 {[%clk 0:00:38.4]} 22. Nc6 {[%clk 0:00:54]} 22...
Qe4 {[%clk 0:00:25.6]} 23. Nxb8 {[%clk 0:00:54.3]} 23... Rxb8 {[%clk 0:00:19.7]}
24. Rf4 {[%clk 0:00:47.3]} 24... Qe6 {[%clk 0:00:18.4]} 25. Raf1 {[%clk
0:00:43.3]} 25... Rf8 {[%clk 0:00:16.9]} 26. e4 {[%clk 0:00:39.6]} 26... h6
{[%clk 0:00:16.1]} 27. h4 {[%clk 0:00:33]} 27... Qc6 {[%clk 0:00:16.4]} 28. Qh5
{[%clk 0:00:29]} 28... c3 {[%clk 0:00:12.2]} 29. Rc1 {[%clk 0:00:29.7]} 29...
cxb2 {[%clk 0:00:10.3]} 30. Rxc6 {[%clk 0:00:24.9]} 30... b1=Q+ {[%clk
0:00:10.8]} 31. Kg2 {[%clk 0:00:23.4]} 31... Bb7 {[%clk 0:00:08.7]} 32. Rxc7
{[%clk 0:00:12.3]} 32... Bxe4+ {[%clk 0:00:08.7]} 33. Kf2 {[%clk 0:00:12.1]}
33... Qb2+ {[%clk 0:00:05.1]} 34. Qe2 {[%clk 0:00:12.7]} 34... Qd4+ {[%clk
0:00:02.8]} 35. Kf1 {[%clk 0:00:07.3]} 35... Qd6 {[%clk 0:00:01.5]} 36. Rc3
{[%clk 0:00:05.2]} 1-0

[Event "Late-Titled-Tuesday-Blitz-September-05-2023"]
[Site "Chess.com"]
[Date "2023.09.05"]
[Round "4"]
[White "leoduarte"]
[Black "AndreiITrifan"]
[Result "0-1"]
[WhiteElo "2396"]
[BlackElo "2629"]
[TimeControl "180+1"]
[EndTime "14:40:00 PDT"]
[Termination "AndreiITrifan won on time"]

1. d4 {[%clk 0:03:00.9]} 1... Nf6 {[%clk 0:02:59.7]} 2. Bf4 {[%clk 0:02:59.8]}
2... b6 {[%clk 0:02:55.2]} 3. e3 {[%clk 0:02:59.2]} 3... Bb7 {[%clk 0:02:55.1]}
4. Nf3 {[%clk 0:02:58]} 4... e6 {[%clk 0:02:55.4]} 5. h3 {[%clk 0:02:57.8]} 5...
Be7 {[%clk 0:02:55.7]} 6. Be2 {[%clk 0:02:57.9]} 6... O-O {[%clk 0:02:55.6]} 7.
O-O {[%clk 0:02:58.4]} 7... d6 {[%clk 0:02:55.7]} 8. a4 {[%clk 0:02:58.3]} 8...
Nbd7 {[%clk 0:02:52.3]} 9. Bh2 {[%clk 0:02:51.7]} 9... h6 {[%clk 0:02:50]} 10.
a5 {[%clk 0:02:41.7]} 10... c5 {[%clk 0:02:49.4]} 11. c3 {[%clk 0:02:35.1]}
11... Bc6 {[%clk 0:02:43]} 12. Na3 {[%clk 0:02:01.6]} 12... Ne4 {[%clk
0:02:24.1]} 13. Qc2 {[%clk 0:01:47]} 13... bxa5 {[%clk 0:02:06.9]} 14. Rfd1
{[%clk 0:01:21]} 14... d5 {[%clk 0:01:56.4]} 15. Nb5 {[%clk 0:00:57.8]} 15... c4
{[%clk 0:01:51.3]} 16. Nc7 {[%clk 0:00:19.7]} 16... Rc8 {[%clk 0:01:48.2]} 17.
Rxa5 {[%clk 0:00:19]} 17... Rxc7 {[%clk 0:01:47.6]} 18. Bxc7 {[%clk 0:00:19.8]}
18... Qxc7 {[%clk 0:01:48.5]} 19. Rda1 {[%clk 0:00:20.4]} 19... Ra8 {[%clk
0:01:41.2]} 20. b4 {[%clk 0:00:21]} 20... Nd6 {[%clk 0:01:22.7]} 21. Nd2 {[%clk
0:00:18.8]} 21... Qb7 {[%clk 0:01:18.4]} 22. Qa2 {[%clk 0:00:18.8]} 22... Nc8
{[%clk 0:01:13.8]} 23. Qb2 {[%clk 0:00:18.5]} 23... a6 {[%clk 0:01:12.5]} 24.
Nb1 {[%clk 0:00:18.3]} 24... Bb5 {[%clk 0:01:08.6]} 25. R5a2 {[%clk 0:00:18.7]}
25... Ncb6 {[%clk 0:01:06.8]} 26. Bd1 {[%clk 0:00:19]} 26... e5 {[%clk
0:00:54.5]} 27. Ra5 {[%clk 0:00:16.6]} 27... exd4 {[%clk 0:00:53.2]} 28. exd4
{[%clk 0:00:17.5]} 28... Nf6 {[%clk 0:00:50.7]} 29. Bf3 {[%clk 0:00:17.6]} 29...
Bd6 {[%clk 0:00:47.1]} 30. Na3 {[%clk 0:00:17.5]} 30... Qc6 {[%clk 0:00:45.9]}
31. Nxb5 {[%clk 0:00:17.4]} 31... axb5 {[%clk 0:00:46.8]} 32. Rxa8+ {[%clk
0:00:14.7]} 32... Nxa8 {[%clk 0:00:47.7]} 33. Qa3 {[%clk 0:00:15.3]} 33... Nb6
{[%clk 0:00:43.2]} 34. Qa7 {[%clk 0:00:15.7]} 34... Na4 {[%clk 0:00:38.8]} 35.
Bd1 {[%clk 0:00:11.8]} 35... Nxc3 {[%clk 0:00:31.6]} 36. Bc2 {[%clk 0:00:12.3]}
36... Qc7 {[%clk 0:00:28]} 37. Qa8+ {[%clk 0:00:12.2]} 37... Bf8 {[%clk
0:00:25.2]} 38. Ra7 {[%clk 0:00:12.8]} 38... Qf4 {[%clk 0:00:21.5]} 39. Ra1
{[%clk 0:00:07.7]} 39... Ne2+ {[%clk 0:00:19.5]} 40. Kh1 {[%clk 0:00:07.3]}
40... Qxf2 {[%clk 0:00:19.5]} 41. Qd8 {[%clk 0:00:05.5]} 41... Nf4 {[%clk
0:00:18.5]} 0-1

[Event "Late-Titled-Tuesday-Blitz-September-05-2023"]
[Site "Chess.com"]
[Date "2023.09.05"]
[Round "4"]
[White "maksimys18"]
[Black "PepeCuenca"]
[Result "1-0"]
[WhiteElo "2512"]
[BlackElo "2660"]
[TimeControl "180+1"]
[EndTime "14:40:00 PDT"]
[Termination "maksimys18 won on time"]

1. d4 {[%clk 0:03:00.9]} 1... d6 {[%clk 0:02:58.6]} 2. Nf3 {[%clk 0:03:01]} 2...
Nf6 {[%clk 0:02:57.6]} 3. c4 {[%clk 0:03:01.5]} 3... g6 {[%clk 0:02:58]} 4. Nc3
{[%clk 0:03:01.8]} 4... Bg7 {[%clk 0:02:58.8]} 5. Bg5 {[%clk 0:02:58.8]} 5...
O-O {[%clk 0:02:58.6]} 6. e3 {[%clk 0:02:57.4]} 6... c5 {[%clk 0:02:58.4]} 7. d5
{[%clk 0:02:57.3]} 7... h6 {[%clk 0:02:58.6]} 8. Bh4 {[%clk 0:02:57.2]} 8... g5
{[%clk 0:02:51.1]} 9. Bg3 {[%clk 0:02:56.9]} 9... Nh5 {[%clk 0:02:51.7]} 10. Be2
{[%clk 0:02:56.7]} 10... f5 {[%clk 0:02:41.5]} 11. Qc2 {[%clk 0:02:53.6]} 11...
Na6 {[%clk 0:02:30]} 12. a3 {[%clk 0:02:53.2]} 12... Nc7 {[%clk 0:02:26.9]} 13.
h4 {[%clk 0:02:48.7]} 13... Nxg3 {[%clk 0:02:21.1]} 14. fxg3 {[%clk 0:02:48.6]}
14... g4 {[%clk 0:02:21.6]} 15. Nd2 {[%clk 0:02:48.8]} 15... e5 {[%clk
0:02:15.1]} 16. O-O {[%clk 0:02:41.3]} 16... e4 {[%clk 0:02:13.6]} 17. Rf4
{[%clk 0:02:35.2]} 17... Be5 {[%clk 0:02:09]} 18. Raf1 {[%clk 0:02:35.1]} 18...
h5 {[%clk 0:01:54.9]} 19. b4 {[%clk 0:02:30]} 19... b6 {[%clk 0:01:50.5]} 20.
Ncxe4 {[%clk 0:01:58]} 20... Bxf4 {[%clk 0:01:47.3]} 21. Rxf4 {[%clk 0:01:57.1]}
21... fxe4 {[%clk 0:01:45.9]} 22. Qxe4 {[%clk 0:01:56.3]} 22... Kg7 {[%clk
0:01:34.8]} 23. Bd3 {[%clk 0:01:52.3]} 23... Rxf4 {[%clk 0:01:26.9]} 24. Qh7+
{[%clk 0:01:48.9]} 24... Kf8 {[%clk 0:01:26.9]} 25. exf4 {[%clk 0:01:41.7]}
25... Qf6 {[%clk 0:01:16.6]} 26. Bg6 {[%clk 0:00:52.5]} 26... Qg7 {[%clk
0:01:08.3]} 27. Qxh5 {[%clk 0:00:52]} 27... Bd7 {[%clk 0:01:06.6]} 28. Ne4
{[%clk 0:00:50.4]} 28... Ne8 {[%clk 0:00:58]} 29. Qg5 {[%clk 0:00:40.3]} 29...
Kg8 {[%clk 0:00:31.7]} 30. h5 {[%clk 0:00:40.2]} 30... Kh8 {[%clk 0:00:29.6]}
31. h6 {[%clk 0:00:40.3]} 31... Qf8 {[%clk 0:00:20.3]} 32. f5 {[%clk 0:00:28.1]}
32... Nc7 {[%clk 0:00:12.6]} 33. Qd2 {[%clk 0:00:22.5]} 33... Kg8 {[%clk
0:00:03.1]} 34. h7+ {[%clk 0:00:21.9]} 34... Kh8 {[%clk 0:00:03]} 35. Qg5 {[%clk
0:00:14.8]} 35... Re8 {[%clk 0:00:01.5]} 36. Bxe8 {[%clk 0:00:14.5]} 36... Nxe8
{[%clk 0:00:01.2]} 37. f6 {[%clk 0:00:10.5]} 37... Qf7 {[%clk 0:00:01.7]} 38.
Qf4 {[%clk 0:00:09.3]} 38... Qxh7 {[%clk 0:00:02]} 39. f7 {[%clk 0:00:08.4]} 1-0

[Event "Late-Titled-Tuesday-Blitz-September-05-2023"]
[Site "Chess.com"]
[Date "2023.09.05"]
[Round "4"]
[White "MusicCityMaster"]
[Black "crazy_but_lazy"]
[Result "0-1"]
[WhiteElo "2445"]
[BlackElo "2597"]
[TimeControl "180+1"]
[EndTime "14:40:00 PDT"]
[Termination "crazy_but_lazy won by resignation"]

1. e4 {[%clk 0:03:00.9]} 1... d6 {[%clk 0:02:53.7]} 2. d4 {[%clk 0:02:58.8]}
2... Nf6 {[%clk 0:02:54.3]} 3. Nc3 {[%clk 0:02:58.4]} 3... e5 {[%clk 0:02:54.9]}
4. Nf3 {[%clk 0:02:55]} 4... Nbd7 {[%clk 0:02:54.7]} 5. Bc4 {[%clk 0:02:54.9]}
5... Be7 {[%clk 0:02:55.1]} 6. h3 {[%clk 0:02:51.8]} 6... O-O {[%clk 0:02:55.3]}
7. Be3 {[%clk 0:02:51.3]} 7... c6 {[%clk 0:02:54.3]} 8. a4 {[%clk 0:02:50.9]}
8... a5 {[%clk 0:02:47.8]} 9. O-O {[%clk 0:02:47.5]} 9... exd4 {[%clk
0:02:47.2]} 10. Nxd4 {[%clk 0:02:47.2]} 10... Nb6 {[%clk 0:02:47.3]} 11. Bd3
{[%clk 0:02:41.5]} 11... Re8 {[%clk 0:02:39.3]} 12. f4 {[%clk 0:02:28.1]} 12...
d5 {[%clk 0:02:14.2]} 13. e5 {[%clk 0:02:25.8]} 13... c5 {[%clk 0:02:14.7]} 14.
Ndb5 {[%clk 0:01:28.5]} 14... d4 {[%clk 0:02:06.1]} 15. exf6 {[%clk 0:01:18.1]}
15... Bxf6 {[%clk 0:02:05.6]} 16. Ne4 {[%clk 0:01:00.6]} 16... dxe3 {[%clk
0:01:10.7]} 17. Nxf6+ {[%clk 0:00:58.9]} 17... gxf6 {[%clk 0:01:11.6]} 18. Qh5
{[%clk 0:00:53.7]} 18... f5 {[%clk 0:01:11.7]} 19. Rae1 {[%clk 0:00:41.3]} 19...
Nd5 {[%clk 0:00:35.6]} 20. Bxf5 {[%clk 0:00:40.9]} 20... Bxf5 {[%clk 0:00:16.7]}
21. Qxf5 {[%clk 0:00:41.8]} 21... Ra6 {[%clk 0:00:10.7]} 22. Rf3 {[%clk
0:00:35.6]} 22... Rg6 {[%clk 0:00:10.1]} 23. c4 {[%clk 0:00:32.1]} 23... Ne7
{[%clk 0:00:06.5]} 24. Qc2 {[%clk 0:00:24]} 24... Nc6 {[%clk 0:00:04.2]} 25.
Rfxe3 {[%clk 0:00:23.2]} 25... Rge6 {[%clk 0:00:03.4]} 26. Rxe6 {[%clk
0:00:22.8]} 26... Rxe6 {[%clk 0:00:04.3]} 27. Rxe6 {[%clk 0:00:22.8]} 27... fxe6
{[%clk 0:00:05.2]} 28. Qe2 {[%clk 0:00:22.3]} 28... Qf6 {[%clk 0:00:04.9]} 29.
Qg4+ {[%clk 0:00:21.6]} 29... Kf7 {[%clk 0:00:05]} 30. Nd6+ {[%clk 0:00:22.1]}
30... Ke7 {[%clk 0:00:05.1]} 31. Ne4 {[%clk 0:00:20.7]} 31... Qd4+ {[%clk
0:00:05.7]} 32. Nf2 {[%clk 0:00:20.7]} 32... Qxc4 {[%clk 0:00:05.9]} 33. Qg5+
{[%clk 0:00:19.1]} 33... Kd6 {[%clk 0:00:05.4]} 34. Ng4 {[%clk 0:00:19.6]} 34...
Qc1+ {[%clk 0:00:05.2]} 35. Kh2 {[%clk 0:00:20.2]} 35... Qxb2 {[%clk 0:00:05.8]}
36. Nf6 {[%clk 0:00:18.5]} 36... Nd4 {[%clk 0:00:04.9]} 37. Ne8+ {[%clk
0:00:18.1]} 37... Kd7 {[%clk 0:00:04.5]} 38. Ng7 {[%clk 0:00:18.3]} 38... Nf3+
{[%clk 0:00:04.4]} 39. Kg3 {[%clk 0:00:18.7]} 39... Nxg5 {[%clk 0:00:05.3]} 40.
fxg5 {[%clk 0:00:19.3]} 40... Qxg7 {[%clk 0:00:05.5]} 41. h4 {[%clk 0:00:18.7]}
41... Qd4 {[%clk 0:00:06.4]} 42. h5 {[%clk 0:00:18.5]} 42... c4 {[%clk
0:00:07.3]} 43. g6 {[%clk 0:00:18.4]} 43... hxg6 {[%clk 0:00:08.2]} 44. hxg6
{[%clk 0:00:19]} 44... Qg7 {[%clk 0:00:08.8]} 45. Kf4 {[%clk 0:00:19]} 45...
Qxg6 {[%clk 0:00:09.7]} 46. g4 {[%clk 0:00:19.5]} 46... c3 {[%clk 0:00:10.6]}
47. g5 {[%clk 0:00:19.6]} 47... c2 {[%clk 0:00:11.5]} 0-1

[Event "Late-Titled-Tuesday-Blitz-September-05-2023"]
[Site "Chess.com"]
[Date "2023.09.05"]
[Round "4"]
[White "Eloist"]
[Black "valemava"]
[Result "0-1"]
[WhiteElo "2451"]
[BlackElo "2294"]
[TimeControl "180+1"]
[EndTime "14:40:02 PDT"]
[Termination "valemava won on time"]

1. e4 {[%clk 0:03:00.9]} 1... c5 {[%clk 0:02:58.7]} 2. Nf3 {[%clk 0:03:00.9]}
2... Qa5 {[%clk 0:02:58.7]} 3. c3 {[%clk 0:02:53]} 3... Nc6 {[%clk 0:02:56.4]}
4. Bd3 {[%clk 0:02:47.3]} 4... d6 {[%clk 0:02:53.4]} 5. O-O {[%clk 0:02:46.7]}
5... Bg4 {[%clk 0:02:53.1]} 6. Be2 {[%clk 0:02:32.9]} 6... Nf6 {[%clk 0:02:51]}
7. d3 {[%clk 0:02:32.7]} 7... e6 {[%clk 0:02:50.8]} 8. h3 {[%clk 0:02:32.8]}
8... Bh5 {[%clk 0:02:50.3]} 9. Nbd2 {[%clk 0:02:31.5]} 9... Be7 {[%clk
0:02:49.3]} 10. Re1 {[%clk 0:02:27.7]} 10... O-O {[%clk 0:02:48.5]} 11. Nf1
{[%clk 0:02:27.5]} 11... Rfd8 {[%clk 0:02:41.5]} 12. Ng3 {[%clk 0:02:26.2]}
12... Bg6 {[%clk 0:02:41]} 13. Nh4 {[%clk 0:02:21.7]} 13... b5 {[%clk
0:02:40.4]} 14. Nxg6 {[%clk 0:02:21.2]} 14... hxg6 {[%clk 0:02:40]} 15. d4
{[%clk 0:02:06.4]} 15... cxd4 {[%clk 0:02:37.4]} 16. cxd4 {[%clk 0:02:05.2]}
16... Nxd4 {[%clk 0:02:33.9]} 17. Bf1 {[%clk 0:02:00.5]} 17... Nc6 {[%clk
0:02:27.7]} 18. Bd2 {[%clk 0:01:54.5]} 18... Qb6 {[%clk 0:02:21.8]} 19. Be3
{[%clk 0:01:54.2]} 19... Qb7 {[%clk 0:02:21.4]} 20. a4 {[%clk 0:01:47.3]} 20...
a6 {[%clk 0:02:18.1]} 21. Qb3 {[%clk 0:01:43.1]} 21... b4 {[%clk 0:02:13.7]} 22.
a5 {[%clk 0:01:40.1]} 22... d5 {[%clk 0:02:06.5]} 23. Bb6 {[%clk 0:01:25.4]}
23... Rdc8 {[%clk 0:01:59.7]} 24. e5 {[%clk 0:01:23.3]} 24... Nd7 {[%clk
0:01:55.4]} 25. Be3 {[%clk 0:00:58.6]} 25... Ncxe5 {[%clk 0:01:48.6]} 26. Rac1
{[%clk 0:00:47.9]} 26... Rxc1 {[%clk 0:01:46.2]} 27. Rxc1 {[%clk 0:00:47.3]}
27... Rc8 {[%clk 0:01:46.2]} 28. Rxc8+ {[%clk 0:00:46.4]} 28... Qxc8 {[%clk
0:01:47.1]} 29. f4 {[%clk 0:00:24.8]} 29... Nc4 {[%clk 0:01:46.1]} 30. Qc2
{[%clk 0:00:24.5]} 30... Bc5 {[%clk 0:01:39.9]} 31. Bxc5 {[%clk 0:00:19]} 31...
Qxc5+ {[%clk 0:01:40.8]} 32. Kh2 {[%clk 0:00:18.9]} 32... Nxa5 {[%clk 0:01:32]}
33. Qa4 {[%clk 0:00:16]} 33... Nc6 {[%clk 0:01:22.5]} 34. Qxa6 {[%clk
0:00:15.1]} 34... Nf6 {[%clk 0:01:22.2]} 35. Qc8+ {[%clk 0:00:14.8]} 35... Kh7
{[%clk 0:01:19.5]} 36. Qb7 {[%clk 0:00:12.1]} 36... Nd8 {[%clk 0:01:05.4]} 37.
Qb8 {[%clk 0:00:10.5]} 37... Qe7 {[%clk 0:00:59.8]} 38. Bd3 {[%clk 0:00:09.9]}
38... Ne8 {[%clk 0:00:50.1]} 39. Ne2 {[%clk 0:00:09.1]} 39... Qc7 {[%clk
0:00:48.8]} 40. Qb5 {[%clk 0:00:08.7]} 40... Nd6 {[%clk 0:00:45.4]} 41. Qa6
{[%clk 0:00:08.7]} 41... Nc4 {[%clk 0:00:37.5]} 42. b3 {[%clk 0:00:07.3]} 42...
Ne3 {[%clk 0:00:35.6]} 43. Qa1 {[%clk 0:00:05.2]} 43... Nf5 {[%clk 0:00:34.9]}
44. g4 {[%clk 0:00:04.1]} 44... Nd6 {[%clk 0:00:33.5]} 45. Qd1 {[%clk 0:00:04]}
45... Qc5 {[%clk 0:00:32.9]} 46. Qd2 {[%clk 0:00:04]} 46... Qf2+ {[%clk
0:00:32.9]} 47. Kh1 {[%clk 0:00:04.3]} 47... Nc6 {[%clk 0:00:30.7]} 48. Qd1
{[%clk 0:00:03.4]} 48... Qf3+ {[%clk 0:00:29.4]} 49. Kh2 {[%clk 0:00:03.1]}
49... Nd4 {[%clk 0:00:28.8]} 0-1